bitfinex-derivatives/quotes_SOLF0:USTF0_20250309
["timestamp","ask_amount","ask_price","bid_price","bid_amount"]
[1741526739733,4.6272,134.9,134.8,32.304]
[1741526740026,7.4157,134.88,134.8,32.304]
[1741526740633,40.71102892,134.95,134.8,32.304]
[1741526740832,1.756e-05,134.85,134.83,0.0517173]
[1741526741039,27.86,134.92,134.84,27.86]
[1741526741336,27.86,134.92,134.81,27.86]
[1741526741933,27.86,134.92,134.85,0.0524481]
[1741526742437,4.7226,134.94,134.85,0.0524481]
[1741526742632,27.84,134.93,134.84,27.86]
[1741526742933,27.84,134.93,134.9,7.4137]
[1741526743237,4.7226,134.94,134.89,222.52]
[1741526745138,7.4137,134.91,134.89,222.52]
[1741526745332,4.7226,134.94,134.89,222.52]
[1741526746939,7.4142,134.9,134.89,222.52]
[1741526749935,11.1142,134.9,134.89,222.52]
[1741526752044,7.4142,134.9,134.89,222.52]
[1741526756147,7.4147,134.89,134.88,0.04934885]
[1741526756347,27.84,134.91,134.83,222.46]
[1741526756548,7.4172,134.85,134.83,222.46]
[1741526757451,0.04804221,134.85,134.84,7.4172]
[1741526757852,27.84,134.91,134.83,250.3469177]
[1741526758552,7.4156,134.88,134.85,7.4169]
[1741526758947,7.4156,134.88,134.85,7.46686567]
[1741526759147,7.415,134.89,134.86,7.4163]
[1741526759348,27.84,134.91,134.86,7.4163]
[1741526759748,27.84,134.91,134.85,0.04996567]
[1741526760148,27.84,134.91,134.86,27.84]
[1741526760347,7.4139,134.91,134.88,7.4152]
[1741526760548,27.84,134.93,134.86,27.84]
[1741526760749,27.84,134.93,134.88,0.05256062]
[1741526761551,30.1097,134.93,134.88,0.05256062]
[1741526761947,7.415,134.89,134.88,0.05256062]
[1741526762849,40.71102892,134.97,134.88,27.89256062]
[1741526763155,40.71102892,134.97,134.92,7.4131]
[1741526763347,40.71102892,134.97,134.91,27.89086391]
[1741526763554,209.01266085,135.0,134.91,27.89086391]
[1741526763555,147.6291834,135.0,134.99,7.4092]
[1741526763750,147.6291834,135.0,134.99,229.8692]
[1741526764446,147.6291834,135.02,134.99,229.8692]
[1741526764849,147.6291834,135.02,135.0,7.4087]
[1741526765354,147.6291834,135.02,135.01,35.2281]
[1741526765653,147.6291834,135.02,135.01,97.2281]
[1741526766047,144.0257834,135.02,135.01,97.2281]
[1741526766658,136.8189834,135.02,135.01,97.2281]
[1741526767058,90.6272834,135.02,135.01,97.2281]
[1741526767263,68.1803834,135.02,135.01,97.2281]
[1741526767459,34.5752834,135.02,135.01,97.2281]
[1741526767760,3.1812834,135.02,135.01,97.2281]
[1741526768258,324.6401372,135.08,135.02,7.4075]
[1741526768259,27.82,135.08,135.02,7.4075]
[1741526768455,2.167,135.1,135.01,89.82]
[1741526768656,2.167,135.1,135.04,0.05368865]
[1741526768955,2.167,135.1,135.04,27.87368865]
[1741526769461,2.167,135.1,135.06,7.4049]
[1741526769862,2.167,135.1,135.04,27.87368865]
[1741526770051,27.82,135.09,135.04,7.46008865]
[1741526770257,27.82,135.09,135.05,74.3933896]
[1741526771860,27.82,135.09,135.04,0.05368865]
[1741526772762,35.2238,135.09,135.04,0.05368865]
[1741526773964,35.2238,135.09,135.04,7.46008865]
[1741526774862,7.4043,135.08,135.04,7.46008865]
[1741526775064,27.82,135.09,135.04,0.05368865]
[1741526775369,7.4054,135.06,135.04,0.05368865]
[1741526775566,30.0964,135.09,135.04,0.05368865]
[1741526775868,7.4059,135.05,135.04,0.05368865]
[1741526776166,30.0964,135.09,135.04,0.05368865]
[1741526776561,7.4045,135.08,135.04,0.05368865]
[1741526776964,7.405,135.07,135.04,0.05368865]
[1741526778967,27.8,135.06,135.04,0.05368865]
[1741526779261,27.8,135.06,134.99,222.46]
[1741526779468,7.4069,135.04,135.0,7.4084]
[1741526779665,27.8,135.06,134.99,222.46]
[1741526780267,0.04944809,135.04,135.01,0.04697982]
[1741526780770,7.45634809,135.04,135.01,0.04697982]
[1741526782269,7.4071,135.03,135.01,0.04697982]
[1741526782468,0.04944809,135.04,135.01,0.04697982]
[1741526782968,0.04944809,135.04,135.01,7.45477982]
[1741526783169,7.4063,135.05,135.01,0.04697982]
[1741526783358,27.8,135.06,135.01,0.04697982]
[1741526784063,27.8,135.06,135.01,7.45477982]
[1741526784064,7.4063,135.05,135.01,7.45477982]
[1741526784769,27.8,135.07,135.01,0.04697982]
[1741526786174,7.4063,135.05,135.02,7.4075]
[1741526786369,2.2764,135.09,135.01,0.04697982]
[1741526786575,30.0764,135.09,135.01,0.04697982]
[1741526788576,223.0764,135.09,134.99,222.46]
[1741526789675,7.4084,135.01,134.99,222.46]
[1741526789877,27.8,135.03,134.99,222.46]
[1741526790076,27.8,135.03,134.99,222.5113123]
[1741526790277,2.29589179,135.02,134.99,222.5113123]
[1741526790877,7.4087,135.0,134.99,222.5113123]
[1741526791267,35.2087,135.0,134.99,0.0513123]
[1741526791475,7.4103,134.97,134.96,10.22465807]
[1741526791678,27.8,134.97,134.95,30.86280084]
[1741526791975,7.4109,134.96,134.95,30.86280084]
[1741526792975,27.84868313,134.97,134.95,30.86280084]
[1741526793170,27.84868313,134.97,134.94,0.05187864]
[1741526793369,0.04868313,134.97,134.96,7.4109]
[1741526793974,0.04868313,134.97,134.94,2.30037864]
[1741526794574,0.04868313,134.97,134.95,62.0]
[1741526794782,0.04868313,134.97,134.96,7.4109]
[1741526795183,193.0,135.06,134.96,27.8]
[1741526795184,27.8,135.03,134.96,27.8]
[1741526795380,35.2071,135.03,134.98,7.4097]
[1741526795979,7.4065,135.04,134.99,7.409]
[1741526796384,0.04728489,135.03,135.0,0.04810615]
[1741526797085,0.04728489,135.03,135.01,222.26]
[1741526797682,7.45468489,135.03,135.01,222.26]
[1741526797984,0.04728489,135.03,135.01,222.26]
[1741526798186,7.4076,135.02,135.01,222.26]
[1741526798381,0.04728489,135.03,135.01,222.26]
[1741526799384,7.45468489,135.03,135.01,222.26]
[1741526799782,0.04728489,135.03,135.01,222.26]
[1741526800485,0.04728489,135.03,135.01,229.668]
[1741526800686,0.04728489,135.03,135.01,222.26]
[1741526801087,7.45438489,135.03,135.01,222.26]
[1741526802689,0.04728489,135.03,135.01,222.26]
[1741526803392,0.04728489,135.03,135.01,224.488]
[1741526803593,0.04728489,135.03,135.02,7.4076]
[1741526805095,35.2045,135.08,135.04,7.4061]
[1741526805395,27.8,135.08,135.04,7.4061]
[1741526805789,7.4051,135.07,135.04,7.4061]
[1741526806193,27.8,135.08,135.04,7.4061]
[1741526806194,27.8,135.08,135.04,0.05033594]
[1741526806495,7.4063,135.05,135.04,0.05033594]
[1741526809891,27.8,135.08,135.04,0.05033594]
[1741526810097,2.332,135.09,135.04,0.05033594]
[1741526810287,27.8,135.11,135.04,0.05033594]
[1741526811394,7.4046,135.08,135.05,7.4058]
[1741526811697,27.8,135.11,135.04,0.05033594]
[1741526812001,7.4047,135.08,135.05,7.4057]
[1741526813405,27.8,135.1,135.04,0.05033594]
[1741526813595,4.5637,135.13,135.04,0.05033594]
[1741526813797,27.8,135.11,135.04,0.05033594]
[1741526814303,7.4044,135.08,135.05,7.4056]
[1741526816096,7.4044,135.08,135.04,0.05033594]
[1741526816303,7.4044,135.08,135.06,7.4054]
[1741526816596,7.4044,135.08,135.04,0.05033594]
[1741526816802,7.4044,135.08,135.05,7.4057]
[1741526817003,27.8,135.11,135.04,0.05033594]
[1741526817204,27.8,135.11,135.04,27.85033594]
[1741526817597,7.4029,135.11,135.04,27.85033594]
[1741526817902,7.4029,135.11,135.08,7.404]
[1741526818202,7.4033,135.1,135.04,27.8]
[1741526818403,30.0032,135.13,135.08,0.05151352]
[1741526818703,30.0032,135.13,135.08,7.45541352]
[1741526818901,30.0032,135.13,135.08,0.05151352]
[1741526821898,7.4033,135.1,135.08,0.05151352]
[1741526822300,30.0032,135.13,135.08,0.05151352]
[1741526822301,7.4038,135.09,135.08,0.05151352]
[1741526823208,2.3679,135.12,135.08,0.05151352]
[1741526823409,7.4035,135.1,135.08,0.05151352]
[1741526823902,7.4028,135.11,135.08,0.05151352]
[1741526824101,2.3679,135.12,135.08,0.05151352]
[1741526825309,7.4038,135.09,135.08,0.05151352]
[1741526829311,7.4056,135.06,135.03,222.12]
[1741526829511,7.4056,135.06,135.03,229.5267]
[1741526830612,7.45839379,135.06,135.03,229.57690219]
[1741526830911,7.45839379,135.06,135.03,222.17020219]
[1741526831305,0.05279379,135.06,135.03,222.17020219]
[1741526832007,0.05279379,135.06,135.05,7.4059]
[1741526834016,0.05279379,135.06,135.04,7.4062]
[1741526834415,0.05279379,135.06,135.03,253.03300303]
[1741526836315,7.45849379,135.06,135.03,260.44000303]
[1741526836518,7.45849379,135.06,135.03,253.03300303]
[1741526836914,0.05279379,135.06,135.03,222.17020219]
[1741526837413,7.4065,135.04,135.03,222.17020219]
[1741526837614,35.1865,135.04,135.03,222.17020219]
[1741526838621,27.78,135.04,135.03,222.17020219]
[1741526839921,35.1865,135.04,135.03,222.17020219]
[1741526842619,7.4087,135.0,134.99,62.0]
[1741526842817,7.4087,135.0,134.98,112.71479382]
[1741526843125,27.78,135.01,134.98,112.71479382]
[1741526843723,27.83065062,135.01,134.98,112.76563201]
[1741526844226,7.4087,135.0,134.98,112.76563201]
[1741526844927,27.83065062,135.01,134.98,0.05083819]
[1741526844928,7.4092,134.99,134.98,0.05083819]
[1741526846829,27.83065062,135.01,134.95,112.71479382]
[1741526847029,7.4108,134.97,134.95,112.71479382]
[1741526847226,35.2108,134.97,134.95,112.71479382]
[1741526847525,27.8,135.0,134.93,30.86280084]
[1741526848025,0.05368505,134.98,134.97,7.4103]
[1741526848935,0.05368505,134.98,134.97,69.4103]
[1741526849234,0.05368505,134.98,134.97,62.0]
[1741526849631,0.05368505,134.98,134.95,0.05296493]
[1741526850936,0.05368505,134.98,134.97,7.4103]
[1741526852536,0.05368505,134.98,134.95,62.05296493]
[1741526852738,27.8,134.97,134.95,0.05296493]
[1741526854034,7.4109,134.96,134.95,0.05296493]
[1741526860238,7.4129,134.93,134.91,222.2]
[1741526860437,35.2129,134.93,134.91,222.2]
[1741526860635,27.8,134.93,134.91,222.2]
[1741526861037,27.8,134.93,134.92,7.4131]
[1741526861231,0.04928063,134.93,134.92,7.4131]
[1741526862540,0.04928063,134.93,134.91,229.66040574]
[1741526862741,0.04928063,134.93,134.91,222.24700574]
[1741526864545,7.46218063,134.93,134.91,222.24700574]
[1741526866546,7.4131,134.92,134.91,222.24700574]
[1741526866740,0.04928063,134.93,134.87,4.7824]
[1741526867244,7.414,134.91,134.88,7.4152]
[1741526867445,35.214,134.91,134.87,4.7824]
[1741526867745,27.8,134.91,134.87,4.7824]
[1741526868046,27.8,134.91,134.88,0.04682833]
[1741526868440,0.04928063,134.93,134.88,0.04682833]
[1741526868845,0.04928063,134.93,134.9,7.4139]
[1741526869042,7.46188063,134.93,134.9,7.4139]
[1741526870342,0.04928063,134.93,134.91,7.4136]
[1741526871144,0.04928063,134.93,134.92,7.4131]
[1741526872149,27.8,134.97,134.95,7.4114]
[1741526872648,35.2104,134.97,134.9,2.258]
[1741526873247,0.04720304,134.95,134.92,0.05382245]
[1741526874047,0.04720304,134.95,134.93,7.4122]
[1741526874245,0.04720304,134.95,134.92,0.05382245]
[1741526874744,0.04720304,134.95,134.93,7.4122]
[1741526875041,0.04720304,134.95,134.92,0.05382245]
[1741526875245,0.04720304,134.95,134.94,7.412]
[1741526875548,27.8,134.99,134.93,224.6001]
[1741526875749,27.8,134.99,134.97,7.4103]
[1741526876148,193.0,135.01,134.93,224.6001]
[1741526876346,27.8,135.0,134.98,7.4094]
[1741526876746,27.85180329,135.0,134.98,7.46341141]
[1741526877648,0.05180329,135.0,134.98,7.46341141]
[1741526879141,0.05180329,135.0,134.98,0.05401141]
[1741526879352,0.05180329,135.0,134.99,7.4092]
[1741526880549,7.46060329,135.0,134.98,0.05401141]
[1741526880950,0.05180329,135.0,134.98,0.05401141]
[1741526882452,7.4092,134.99,134.98,0.05401141]
[1741526883751,7.46070329,135.0,134.98,0.05401141]
[1741526884154,0.05180329,135.0,134.98,0.05401141]
[1741526884954,7.46090329,135.0,134.98,0.05401141]
[1741526886154,0.05180329,135.0,134.98,0.05401141]
[1741526886342,0.05180329,135.0,134.99,7.4092]
[1741526887455,0.05180329,135.0,134.98,0.05401141]
[1741526887654,0.05180329,135.0,134.98,7.46361141]
[1741526887857,0.05180329,135.0,134.98,0.05401141]
[1741526888058,27.8,134.99,134.98,0.05401141]
[1741526888656,7.4111,134.96,134.93,222.36]
[1741526888858,35.2111,134.96,134.93,222.36]
[1741526889460,27.8,134.96,134.93,222.36]
[1741526889658,27.85045283,134.96,134.93,222.41386213]
[1741526889958,0.05045283,134.96,134.93,222.41386213]
[1741526891751,0.05045283,134.96,134.94,7.4115]
[1741526893657,0.05045283,134.96,134.93,229.82616213]
[1741526893857,0.05045283,134.96,134.93,222.41386213]
[1741526894053,7.4115,134.95,134.93,222.41386213]
[1741526894662,0.05045283,134.96,134.93,222.41386213]
[1741526894859,0.05045283,134.96,134.94,7.412]
[1741526895255,0.05045283,134.96,134.93,222.41386213]
[1741526895858,27.85045283,134.96,134.93,222.41386213]
[1741526896062,7.412,134.94,134.93,222.41386213]
[1741526896261,7.412,134.94,134.93,0.05386213]
[1741526898051,7.413,134.93,134.88,7.4152]
[1741526898264,27.8,134.92,134.88,7.4152]
[1741526898959,27.8,134.92,134.87,222.3]
[1741526899163,0.05678151,134.91,134.88,0.0508948]
[1741526899667,0.05678151,134.91,134.89,7.4143]
[1741526900467,0.05678151,134.91,134.9,7.4142]
[1741526900958,27.8,134.95,134.88,0.0508948]
[1741526901159,7.4105,134.97,134.88,0.0508948]
[1741526901358,27.8,134.96,134.93,7.4124]
[1741526901558,35.211,134.96,134.87,250.1]
[1741526902060,0.05571594,134.93,134.91,7.4131]
[1741526902561,0.05571594,134.93,134.92,7.4131]
[1741526905466,35.26123985,135.0,134.97,7.46137295]
[1741526906164,27.85223985,135.0,134.97,7.46137295]
[1741526906767,27.85223985,135.0,134.97,0.05147295]
[1741526906966,27.85223985,135.0,134.98,7.4097]
[1741526907168,27.85223985,135.0,134.97,0.05147295]
[1741526907169,0.05223985,135.0,134.97,0.05147295]
[1741526907366,0.05223985,135.0,134.99,7.4092]
[1741526909665,0.05223985,135.0,134.98,7.4096]
[1741526910169,0.05223985,135.0,134.97,0.05147295]
[1741526910772,7.4096,134.99,134.97,0.05147295]
[1741526910973,27.83223985,135.0,134.97,0.05147295]
[1741526911573,35.24103985,135.0,134.97,0.05147295]
[1741526912277,27.83223985,135.0,134.97,0.05147295]
[1741526912678,27.83223985,135.0,134.99,7.4092]
[1741526912872,0.05223985,135.0,134.99,7.4092]
[1741526915373,0.05223985,135.0,134.97,0.05147295]
[1741526915575,0.05223985,135.0,134.97,7.46177295]
[1741526916181,7.46123985,135.0,134.97,7.46177295]
[1741526916476,0.05223985,135.0,134.97,0.05147295]
[1741526916681,7.4093,134.99,134.97,0.05147295]
[1741526916981,0.05223985,135.0,134.97,0.05147295]
[1741526917181,7.46123985,135.0,134.97,7.46177295]
[1741526917582,0.05223985,135.0,134.97,7.46177295]
[1741526917880,0.05223985,135.0,134.97,0.05147295]
[1741526918488,0.05223985,135.0,134.99,7.4092]
[1741526920880,3.985e-05,135.0,134.99,7.4092]
[1741526921384,3.985e-05,135.0,134.99,9.9551]
[1741526923182,3.985e-05,135.0,134.98,7.4095]
[1741526923884,7.40873985,135.0,134.98,7.4095]
[1741526924577,3.985e-05,135.0,134.98,7.4095]
[1741526925183,3.985e-05,135.0,134.97,0.05147295]
[1741526925483,3.985e-05,135.0,134.99,7.4092]
[1741526928179,3.985e-05,135.0,134.99,9.8404]
[1741526933982,193.0,135.17,135.09,7.4034]
[1741526934194,30.1636,135.16,135.06,249.98]
[1741526934487,7.4014,135.14,135.08,7.404]
[1741526934886,35.1987,135.16,135.06,249.98]
[1741526935189,0.04970693,135.11,135.09,0.04952693]
[1741526935480,35.1987,135.16,135.09,0.04952693]
[1741526935685,7.4009,135.15,135.09,0.04952693]
[1741526935885,0.05124556,135.14,135.09,0.04952693]
[1741526936287,7.45234556,135.14,135.09,0.04952693]
[1741526936891,7.45234556,135.14,135.09,7.45322693]
[1741526940291,7.45234556,135.14,135.1,7.403]
[1741526941191,0.05124556,135.14,135.11,7.4024]
[1741526941395,0.05124556,135.14,135.09,0.04952693]
[1741526941785,7.45264556,135.14,135.11,7.4025]
[1741526941985,0.05124556,135.14,135.11,7.4025]
[1741526942901,0.05124556,135.14,135.09,0.04952693]
[1741526943099,0.05124556,135.14,135.13,7.4016]
[1741526943301,0.05124556,135.14,135.07,5.1748]
[1741526943504,0.05124556,135.14,135.12,0.05064494]
[1741526943696,0.05124556,135.14,135.07,5.1748]
[1741526943895,27.81124556,135.14,135.07,5.1748]
[1741526944092,27.81124556,135.14,135.11,7.4026]
[1741526944295,27.81124556,135.14,135.09,0.05323373]
[1741526944692,27.81124556,135.14,135.09,7.45673373]
[1741526945101,27.81124556,135.14,135.09,0.05323373]
[1741526945311,35.21274556,135.14,135.1,7.4031]
[1741526946799,27.81124556,135.14,135.11,7.4026]
[1741526947102,0.05124556,135.14,135.11,7.4026]
[1741526948205,0.05124556,135.14,135.12,7.4017]
[1741526949606,0.05124556,135.14,135.13,7.4016]
[1741526950107,0.05124556,135.14,135.12,0.05143247]
[1741526951501,0.05124556,135.14,135.12,7.45333247]
[1741526951909,0.05124556,135.14,135.12,0.05143247]
[1741526952102,0.05124556,135.14,135.13,7.4016]
[1741526952310,0.05124556,135.14,135.12,0.05143247]
[1741526952510,0.05124556,135.14,135.12,7.45323247]
[1741526953212,0.05124556,135.14,135.13,7.4016]
[1741526953414,0.00423982,135.14,135.13,7.4016]
[1741526953609,0.00423982,135.14,135.12,27.79143247]
[1741526954615,0.00423982,135.14,135.13,7.4016]
[1741526956516,7.3986,135.19,135.15,7.4]
[1741526957817,0.0521165,135.18,135.16,0.04887366]
[1741526958719,7.4510165,135.18,135.16,0.04887366]
[1741526959117,7.3994,135.17,135.16,0.04887366]
[1741526959511,0.0521165,135.18,135.16,0.04887366]
[1741526959715,7.3994,135.17,135.16,0.04887366]
[1741526962020,35.1911165,135.18,135.16,0.04887366]
[1741526963224,7.3994,135.17,135.16,0.04887366]
[1741526964624,0.0521165,135.18,135.16,7.44877366]
[1741526965529,0.0521165,135.18,135.16,0.04887366]
[1741526965726,0.0521165,135.18,135.17,7.3994]
[1741526966819,193.0,135.26,135.16,27.78887366]
[1741526967015,27.74,135.25,135.18,7.3984]
[1741526967219,27.74,135.25,135.16,27.74]
[1741526967524,43.19423773,135.28,135.16,27.74]
[1741526967721,27.72,135.25,135.16,27.74]
[1741526968225,27.72,135.25,135.19,7.45124896]
[1741526968425,27.72,135.25,135.19,0.05344896]
[1741526969217,7.3967,135.22,135.19,0.05344896]
[1741526969422,27.72,135.25,135.2,7.3976]
[1741526969725,7.3959,135.24,135.2,7.3976]
[1741526969925,27.72,135.25,135.19,0.05344896]
[1741526970118,27.72,135.25,135.21,7.3971]
[1741526970322,7.3956,135.24,135.21,7.3971]
[1741526970721,27.72,135.25,135.21,7.3971]
[1741526970927,35.1155,135.25,135.21,7.3971]
[1741526971226,27.72,135.25,135.22,7.3964]
[1741526971424,35.1147,135.26,135.22,229.3564]
[1741526971620,35.1147,135.26,135.22,229.40968488]
[1741526971825,27.72,135.26,135.22,222.01328488]
[1741526972623,7.3961,135.23,135.22,222.01328488]
[1741526972825,35.1161,135.23,135.22,222.01328488]
[1741526975826,27.72,135.23,135.22,222.01328488]
[1741526976626,35.1161,135.23,135.22,222.01328488]
[1741526978234,27.72,135.23,135.22,222.01328488]
[1741526978823,7.3961,135.23,135.22,222.01328488]
[1741526980126,27.72,135.24,135.22,222.01328488]
[1741526980333,35.1158,135.24,135.22,222.01328488]
[1741526980534,27.72,135.25,135.22,222.01328488]
[1741526981534,7.3961,135.23,135.22,222.01328488]
[1741526982237,7.3958,135.24,135.22,222.01328488]
[1741526982438,27.72,135.25,135.22,222.01328488]
[1741526983326,7.396,135.24,135.22,222.01328488]
[1741526983726,27.72,135.25,135.22,222.01328488]
[1741526983930,4.9429,135.29,135.22,222.01328488]
[1741526984134,27.72,135.26,135.22,222.01328488]
[1741526984529,35.1147,135.26,135.22,229.40988488]
[1741526984734,27.72,135.26,135.22,222.01328488]
[1741526984935,7.3953,135.25,135.22,222.01328488]
[1741526985237,27.72,135.26,135.22,222.01328488]
[1741526985742,7.3953,135.25,135.22,222.01328488]
[1741526987140,27.72,135.26,135.22,222.01328488]
[1741526987334,35.1147,135.26,135.23,7.396]
[1741526987528,2.5448,135.29,135.22,222.01328488]
[1741526987733,27.7,135.28,135.22,222.01328488]
[1741526988039,7.3943,135.27,135.23,7.3956]
[1741526988238,27.7,135.28,135.23,7.3956]
[1741526988839,7.3951,135.25,135.22,229.40968488]
[1741526989138,27.7,135.25,135.22,222.01328488]
[1741526989340,35.0953,135.25,135.22,222.01328488]
[1741526990040,27.7,135.25,135.22,222.01328488]
[1741526990935,7.3958,135.24,135.22,222.01328488]
[1741526991538,7.3961,135.23,135.22,222.01328488]
[1741526994136,7.3961,135.23,135.22,0.05328488]
[1741526994545,27.7,135.25,135.18,221.9]
[1741526995139,7.3975,135.21,135.18,221.9]
[1741526995543,7.45048991,135.21,135.18,221.95145387]
[1741526995939,0.05298991,135.21,135.18,221.95145387]
[1741526996339,0.05298991,135.21,135.18,229.35005387]
[1741526997846,0.05298991,135.21,135.2,7.3977]
[1741526998247,27.7,135.22,135.18,221.95145387]
[1741526998445,35.0952,135.25,135.21,7.3972]
[1741526999345,35.0952,135.25,135.22,0.04862909]
[1741526999545,27.7,135.25,135.22,0.04862909]
[1741526999846,7.3959,135.24,135.22,0.04862909]
[1741527000048,27.7,135.25,135.22,0.04862909]
[1741527000348,7.3961,135.23,135.22,0.04862909]
[1741527000747,58.9559231,135.3,135.22,0.04862909]
[1741527000948,27.7,135.29,135.22,0.04862909]
[1741527001348,7.3959,135.24,135.22,0.04862909]
[1741527001549,27.7,135.25,135.22,0.04862909]
[1741527001948,7.3955,135.24,135.22,0.04862909]
[1741527002345,27.7,135.25,135.22,0.04862909]
[1741527003153,7.3961,135.23,135.22,0.04862909]
[1741527007555,7.3983,135.19,135.18,221.9]
[1741527007853,27.7,135.19,135.14,2.5585]
[1741527008746,0.04917609,135.18,135.15,0.05190078]
[1741527009052,7.44837609,135.18,135.15,0.05190078]
[1741527009551,0.04917609,135.18,135.15,0.05190078]
[1741527009753,0.04917609,135.18,135.15,7.45190078]
[1741527009956,0.04917609,135.18,135.15,0.05190078]
[1741527010154,0.04917609,135.18,135.16,7.3999]
[1741527010354,0.04917609,135.18,135.15,0.05190078]
[1741527010744,0.04917609,135.18,135.17,7.3994]
[1741527011246,0.04917609,135.18,135.15,0.05190078]
[1741527012757,27.7,135.22,135.15,0.05190078]
[1741527013157,7.3976,135.21,135.17,7.399]
[1741527013355,27.7,135.22,135.17,7.399]
[1741527013752,7.3978,135.2,135.17,7.399]
[1741527013958,7.3978,135.2,135.18,0.04716933]
[1741527014160,27.7,135.22,135.18,0.04716933]
[1741527014356,7.3974,135.21,135.18,0.04716933]
[1741527015062,7.3979,135.2,135.18,0.04716933]
[1741527015258,27.7,135.22,135.18,0.04716933]
[1741527015558,7.3983,135.19,135.18,0.04716933]
[1741527015959,27.7,135.22,135.18,0.04716933]
[1741527016149,7.3982,135.2,135.18,0.04716933]
[1741527016354,27.7,135.22,135.18,0.04716933]
[1741527018262,7.3983,135.19,135.18,0.04716933]
[1741527018466,35.0983,135.19,135.18,0.04716933]
[1741527018963,27.7,135.19,135.18,0.04716933]
[1741527019869,35.0983,135.19,135.18,0.04716933]
[1741527025868,35.0983,135.19,135.18,6.933e-05]
[1741527031975,7.3983,135.19,135.18,6.933e-05]
[1741527032182,7.44719732,135.2,135.18,6.933e-05]
[1741527032785,7.3983,135.19,135.18,6.933e-05]
[1741527033378,0.04929732,135.2,135.18,6.933e-05]
[1741527033583,7.44729732,135.2,135.18,6.933e-05]
[1741527034979,0.04929732,135.2,135.18,7.39856933]
[1741527035686,0.04929732,135.2,135.19,7.3983]
[1741527039694,27.68,135.23,135.21,7.3969]
[1741527040585,279.24237547,135.3,135.18,2.36916933]
[1741527040889,27.68,135.28,135.19,27.68]
[1741527041090,27.68,135.28,135.22,0.04922566]
[1741527041787,7.3948,135.26,135.22,7.44562566]
[1741527042992,7.3948,135.26,135.22,0.04922566]
[1741527043292,27.68,135.27,135.22,0.04922566]
[1741527047595,7.3961,135.23,135.22,0.04922566]
[1741527048288,35.0759,135.24,135.22,0.04922566]
[1741527049493,7.3961,135.23,135.22,0.04922566]
[1741527050797,35.0758,135.24,135.22,0.04922566]
[1741527050997,27.68,135.24,135.22,0.04922566]
[1741527051394,4.9881,135.3,135.22,7.44552566]
[1741527051604,27.66,135.29,135.22,7.44552566]
[1741527051900,7.3949,135.26,135.22,7.44552566]
[1741527052298,27.66,135.27,135.22,7.44552566]
[1741527052600,7.3953,135.25,135.22,7.44552566]
[1741527052898,4.9881,135.3,135.22,0.04922566]
[1741527053097,35.0537,135.28,135.22,0.04922566]
[1741527053300,27.66,135.28,135.22,0.04922566]
[1741527054599,2.3726,135.27,135.22,0.04922566]
[1741527054800,7.3961,135.23,135.22,0.04922566]
[1741527058506,27.66,135.24,135.17,4.9759]
[1741527058701,7.3988,135.18,135.17,2.4347]
[1741527059205,7.3994,135.17,135.16,221.96]
[1741527060206,35.0594,135.17,135.16,221.96]
[1741527060394,27.66,135.17,135.15,0.05698035]
[1741527060708,27.66,135.17,135.09,262.94439706]
[1741527061099,27.66,135.17,135.09,221.9]
[1741527061403,27.66,135.17,135.1,62.0]
[1741527061603,27.66,135.17,135.1,89.66]
[1741527061797,0.04994716,135.15,135.12,0.04834609]
[1741527062005,0.04994716,135.15,135.13,7.4012]
[1741527062200,0.04994716,135.15,135.12,0.04834609]
[1741527062797,27.66,135.2,135.12,0.04834609]
[1741527063404,7.3997,135.17,135.12,0.04834609]
[1741527063604,35.0597,135.17,135.12,0.04834609]
[1741527063804,27.66,135.17,135.12,0.04834609]
[1741527064003,0.05397132,135.16,135.12,0.04834609]
[1741527064504,7.4016,135.13,135.12,0.04834609]
[1741527064704,35.0616,135.13,135.12,0.04834609]
[1741527064901,27.66,135.13,135.12,0.04834609]
[1741527066007,2.49797132,135.16,135.12,0.04834609]
[1741527066206,27.66,135.15,135.12,0.04834609]